bitfinex-derivatives/quotes_SOLF0:USTF0_20250706
["timestamp","ask_amount","ask_price","bid_price","bid_amount"]
[1751839903159,6.5324,153.05,153.02,6.5335]
[1751839903363,4.18674126,153.04,153.02,6.5335]
[1751839903561,4.18674126,153.03,153.01,9.16449088]
[1751839903762,612.92,153.06,153.01,9.16449088]
[1751839903959,4.18674126,153.05,153.01,9.16449088]
[1751839904163,4.18674126,153.04,153.01,9.16449088]
[1751839904364,4.18674126,153.03,153.01,9.16449088]
[1751839904563,612.92,153.06,153.01,9.16449088]
[1751839904759,6.5329,153.04,153.01,2.63069088]
[1751839904961,4.19020206,153.03,152.99,2.63069088]
[1751839905161,4.19020206,153.02,152.99,2.63069088]
[1751839905363,615.55069088,153.06,152.99,2.63069088]
[1751839905562,6.5327,153.04,153.0,6.5341]
[1751839905765,4.20122659,153.03,153.0,6.5341]
[1751839905962,4.20122659,153.02,153.0,6.5341]
[1751839906266,6.5332,153.03,153.0,6.5341]
[1751839906462,4.20146482,153.02,153.0,6.5341]
[1751839906661,6.5332,153.03,153.0,6.5341]
[1751839906965,10.73807101,153.02,152.99,9.16529088]
[1751839907160,4.20513921,153.01,152.99,9.16529088]
[1751839907363,4.20513921,153.0,152.99,9.16529088]
[1751839907562,6.5332,153.03,153.0,6.5341]
[1751839907760,4.20777643,153.02,153.0,6.5341]
[1751839907955,10.74187643,153.01,152.99,2.63069088]
[1751839908160,4.20777643,153.0,152.95,2.63069088]
[1751839908362,4.20777643,152.99,152.95,2.63069088]
[1751839908561,4.20777643,152.98,152.96,6.5356]
[1751839908760,4.21158496,152.97,152.94,2.63069088]
[1751839908960,4.21204922,152.96,152.94,2.63069088]
[1751839909165,2.33432238,152.99,152.94,2.63069088]
[1751839909366,4.21250994,152.98,152.94,2.63069088]
[1751839909562,4.21250994,152.97,152.94,2.63069088]
[1751839909863,50.9959,153.01,152.95,6.5365]
[1751839909864,4.21250994,152.96,152.95,6.5365]
[1751839910059,4.21250994,152.96,152.95,9.16719088]
[1751839910260,6.5346,153.0,152.96,6.5357]
[1751839910465,4.16614576,152.99,152.96,6.5357]
[1751839910667,48.68,153.01,152.96,6.5357]
[1751839910866,6.50870005,153.0,152.96,6.5357]
[1751839911166,10.70105405,152.99,152.97,6.5356]
[1751839911368,4.16625405,152.98,152.97,6.5356]
[1751839913061,4.16625405,152.98,152.96,6.5359]
[1751839913265,6.5348,152.99,152.96,6.5359]
[1751839913469,4.16669046,152.98,152.96,6.5359]
[1751839913670,6.5348,152.99,152.96,6.5359]
[1751839913870,4.16669046,152.98,152.97,6.5356]
[1751839914572,4.16702763,152.98,152.94,2.63069088]
[1751839914772,48.68,153.01,152.94,2.63069088]
[1751839914975,10.70141925,153.0,152.97,6.5354]
[1751839915270,4.16691925,152.99,152.94,2.63069088]
[1751839915467,55.2142,153.01,152.98,6.5352]
[1751839915671,4.16669935,153.0,152.98,6.5352]
[1751839915866,4.16669935,152.99,152.98,6.5352]
[1751839916067,4.16669935,152.99,152.97,6.5354]
[1751839916268,6.5344,153.0,152.97,6.5354]
[1751839916469,55.2141,153.01,152.98,6.5352]
[1751839916773,4.11312246,153.0,152.98,6.5352]
[1751839916971,55.2141,153.01,152.98,6.5352]
[1751839917270,48.68,153.01,152.96,2.63069088]
[1751839917674,55.2142,153.01,152.98,6.5349]
[1751839919175,6.5344,153.0,152.98,6.5349]
[1751839919371,48.68,153.01,152.98,6.5349]
[1751839920175,48.68,153.01,152.99,6.5348]
[1751839920680,55.214,153.01,152.98,6.5349]
[1751839921173,48.68,153.01,152.98,2.63069088]
[1751839922579,48.68,153.01,153.0,6.5343]
[1751839922976,6.5332,153.03,153.0,6.5343]
[1751839923578,6.5336,153.02,152.99,6.5346]
[1751839924872,6.5332,153.03,153.0,6.5342]
[1751839925372,50.8228,153.05,153.0,2.63069088]
[1751839925572,48.68,153.05,153.03,2.63069088]
[1751839925777,48.68,153.05,153.01,2.63069088]
[1751839925981,4.12871911,153.04,153.01,2.63069088]
[1751839926174,48.68,153.05,153.01,2.63069088]
[1751839926480,4.12896566,153.04,153.02,6.5334]
[1751839926679,55.2124,153.05,153.02,6.5334]
[1751839927980,6.5327,153.04,153.01,9.16439088]
[1751839928583,55.2124,153.05,153.02,6.5335]
[1751839929081,6.5327,153.04,153.01,9.16449088]
[1751839930581,48.68,153.05,152.97,48.5]
[1751839930792,4.13018757,153.04,152.98,2.63069088]
[1751839930977,4.13018757,153.03,152.98,2.63069088]
[1751839931282,51.31069088,153.05,152.98,2.63069088]
[1751839931482,4.13159375,153.04,152.98,2.63069088]
[1751839931683,4.13159375,153.03,152.98,2.63069088]
[1751839931886,48.68,153.05,153.0,2.63069088]
[1751839932081,48.68,153.05,153.02,2.63069088]
[1751839932278,4.13226512,153.04,153.02,2.63069088]
[1751839932483,48.68,153.05,153.02,2.63069088]
[1751839932786,4.13236995,153.04,153.01,6.5337]
[1751839933091,6.5329,153.04,153.01,6.5337]
[1751839933282,48.68,153.05,153.0,9.16489088]
[1751839933490,6.5333,153.03,153.0,2.63069088]
[1751839934588,6.5336,153.02,152.98,2.63069088]
[1751839934886,4.91588903,153.04,152.96,2.63069088]
[1751839935089,6.5337,153.02,152.98,6.5348]
[1751839935388,4.13648131,153.01,152.98,2.63069088]
[1751839935588,4.4935,153.04,152.98,9.16559088]
[1751839935888,6.42614671,153.03,152.98,9.16559088]
[1751839936189,6.42805533,153.02,152.98,9.16559088]
[1751839936386,4.13934941,153.01,152.98,9.16559088]
[1751839936590,4.4935,153.04,152.98,9.16559088]
[1751839936792,2.63069088,153.02,152.96,2.63069088]
[1751839937088,6.5344,153.0,152.96,2.63069088]
[1751839937292,4.14280616,152.99,152.96,2.63069088]
[1751839937493,4.14280616,152.98,152.96,2.63069088]
[1751839937687,6.5344,153.0,152.96,2.63069088]
[1751839937891,4.14608794,152.99,152.96,2.63069088]
[1751839938092,4.14608794,152.98,152.96,2.63069088]
[1751839938283,2.29017705,153.0,152.96,2.63069088]
[1751839938495,4.14609307,152.99,152.96,2.63069088]
[1751839938690,4.14609307,152.98,152.97,6.5355]
[1751839938996,2.29017704,153.02,152.96,2.63069088]
[1751839939194,6.43621761,153.01,152.96,2.63069088]
[1751839939394,12.97081761,153.0,152.97,6.5355]
[1751839939589,4.14604057,152.99,152.97,6.5355]
[1751839939785,4.14604057,152.98,152.97,6.5355]
[1751839939998,4.14604057,152.98,152.96,2.63069088]
[1751839940294,2.2217,153.03,152.96,2.63069088]
[1751839940592,9.06665329,153.02,152.94,2.63069088]
[1751839940895,9.06665329,153.02,152.92,2.63069088]
[1751839940896,2.63069088,153.0,152.92,2.63069088]
[1751839941095,54.93596241,152.99,152.92,2.63069088]
[1751839941292,6.43596241,152.98,152.92,2.63069088]
[1751839941492,6.5363,152.96,152.92,2.63069088]
[1751839941689,4.14589552,152.95,152.92,2.63069088]
[1751839941898,6.5363,152.96,152.92,2.63069088]
[1751839942193,6.5365,152.95,152.92,2.63069088]
[1751839943495,6.5369,152.94,152.92,2.63069088]
[1751839945590,6.5373,152.93,152.92,2.63069088]
[1751839946298,6.5371,152.94,152.92,2.63069088]
[1751839947690,6.5373,152.93,152.92,2.63069088]
[1751839949000,6.5371,152.94,152.92,2.63069088]
[1751839949395,6.5373,152.93,152.92,2.63069088]
[1751839957102,6.537,152.94,152.92,2.63069088]
[1751839957303,2.1909,152.98,152.92,2.63069088]
[1751839957506,2.1909,152.98,152.94,2.63069088]
[1751839957700,6.5373,152.94,152.92,2.63069088]
[1751839957899,2.1909,152.98,152.92,2.63069088]
[1751839958301,6.5369,152.95,152.92,2.63069088]
[1751839958902,2.63069088,152.97,152.91,2.63069088]
[1751839959104,4.91349088,152.97,152.89,51.13069088]
[1751839959306,7.06989088,152.97,152.89,2.63069088]
[1751839959605,6.5381,152.92,152.89,2.63069088]
[1751839960809,4.53503091,152.97,152.91,2.63069088]
[1751839961106,2.2828,152.97,152.91,2.63069088]
[1751839961408,6.5372,152.94,152.91,2.63069088]
[1751839961907,6.5372,152.94,152.93,2.63069088]
[1751839963408,6.5366,152.95,152.93,2.63069088]
[1751839963798,48.5,152.99,152.93,2.63069088]
[1751839964102,48.5,152.99,152.98,2.63069088]
[1751839964103,6.5349,152.99,152.98,2.63069088]
[1751839964310,2.24468936,153.02,152.96,2.63069088]
[1751839964608,6.5355,152.98,152.96,2.63069088]
[1751839967007,6.5356,152.97,152.96,2.63069088]
[1751839968608,6.536,152.96,152.95,2.63069088]
[1751839969008,6.5358,152.97,152.95,2.63069088]
[1751839969205,2.27965005,153.0,152.95,2.63069088]
[1751839969413,2.63069088,153.02,152.95,2.63069088]
[1751839969609,2.27983463,153.01,152.95,2.63069088]
[1751839969807,2.63069088,153.02,152.95,2.63069088]
[1751839970006,2.27982979,153.01,152.95,2.63069088]
[1751839970204,6.5355,152.98,152.95,2.63069088]
[1751839971107,6.5355,152.98,152.95,9.16709088]
[1751839972318,6.5359,152.97,152.95,2.63069088]
[1751839973516,6.5354,152.98,152.95,2.63069088]
[1751839973711,6.5354,152.98,152.95,9.16719088]
[1751839974616,6.5354,152.98,152.95,2.63069088]
[1751839975413,6.5357,152.97,152.95,2.63069088]
[1751839976715,6.5354,152.98,152.95,2.63069088]
[1751839978620,2.2696285,153.0,152.95,2.63069088]
[1751839978810,2.28482729,152.99,152.95,2.63069088]
[1751839979013,2.2696285,153.0,152.95,2.63069088]
[1751839979216,6.5359,152.97,152.95,2.63069088]
[1751839980521,6.5361,152.96,152.95,2.63069088]
[1751839981617,2.2696285,153.0,152.95,57.47069088]
[1751839981822,9.13205844,153.05,152.96,2.62891233]
[1751839982019,3.98499572,153.04,153.0,2.62891233]
[1751839982219,3.98499572,153.03,153.0,2.62891233]
[1751839982421,2.62945886,153.05,152.97,14.62144284]
[1751839982624,6.5336,153.02,152.97,9.16475886]
[1751839982915,6.19344977,153.04,152.94,11.99198398]
[1751839982916,3.98314977,153.01,152.94,11.99198398]
[1751839983120,2.62945886,152.99,152.92,14.62144284]
[1751839983318,48.3,153.02,152.98,2.62945886]
[1751839983524,3.98458165,153.01,152.98,2.62945886]
[1751839983824,3.98458165,153.0,152.98,2.62945886]
[1751839984024,54.8336,153.02,152.98,2.62945886]
[1751839984823,54.8336,153.02,152.98,9.16455886]
[1751839984824,48.3,153.02,152.98,9.16455886]
[1751839986819,54.8335,153.02,152.98,9.16455886]
[1751839987119,54.8335,153.02,152.98,2.62945886]
[1751839989625,54.8335,153.02,152.99,6.5348]
[1751839991732,6.5339,153.01,152.98,9.16455886]
[1751839992428,54.8336,153.02,152.98,9.16455886]
[1751839992629,48.3,153.02,152.98,9.16455886]
[1751839992929,6.5339,153.01,152.98,2.62945886]
[1751839994337,6.5345,153.0,152.98,2.62945886]
[1751839994630,48.3,153.02,152.98,6.5352]
[1751839995534,6.5342,153.01,152.98,6.5352]
[1751839997032,54.8336,153.02,152.98,6.5352]
[1751839998836,6.5339,153.01,152.98,6.5352]
[1751840000137,54.8337,153.02,152.98,6.5352]
[1751840001334,6.5339,153.01,152.98,6.5352]
[1751840004234,48.3,153.02,152.94,11.99198398]
[1751840004431,4.87555941,153.01,152.93,2.62945886]
[1751840004636,2.24610055,153.0,152.93,2.63191993]
[1751840004837,6.5355,152.98,152.94,6.5366]
[1751840005029,197.58,152.99,152.92,2.63234036]
[1751840005230,6.5364,152.96,152.93,6.5373]
[1751840005437,48.08,152.97,152.92,2.63234036]
[1751840006139,6.5362,152.96,152.92,9.16984036]
[1751840006735,6.5362,152.96,152.89,60.07198398]
[1751840006736,48.08,152.97,152.94,2.63234036]
[1751840006934,48.08,152.97,152.91,11.99198398]
[1751840007140,2.24664791,152.96,152.89,2.63234036]
[1751840007442,6.5376,152.93,152.89,9.17134036]
[1751840009543,6.5378,152.92,152.88,6.5393]
[1751840009740,2.63234036,152.95,152.86,2.3406]
[1751840009741,2.63234036,152.95,152.87,2.63234036]
[1751840011543,6.5381,152.92,152.88,6.5393]
[1751840012538,2.63234036,152.95,152.87,2.63234036]
[1751840012744,2.63234036,152.96,152.89,2.63234036]
[1751840013440,48.08,152.97,152.89,2.63234036]
[1751840013745,197.5,152.96,152.91,2.63234036]
[1751840014549,6.537,152.94,152.91,9.17034036]
[1751840014841,197.5,152.96,152.91,2.63234036]
[1751840015542,6.5367,152.95,152.91,9.17044036]
[1751840016247,6.5696,152.98,152.93,2.63234036]
[1751840016448,48.1,152.96,152.93,2.63234036]
[1751840016839,6.5365,152.95,152.93,2.63234036]
[1751840018547,50.73234036,152.96,152.89,2.63234036]
[1751840019149,50.73234036,152.96,152.89,9.17124036]
[1751840019347,50.73234036,152.96,152.89,2.63234036]
[1751840020555,6.538,152.92,152.89,2.63234036]
[1751840022649,6.538,152.92,152.88,9.17154036]
[1751840023052,6.5375,152.93,152.89,6.5389]
[1751840023248,50.73234036,152.96,152.9,2.63234036]
[1751840023649,6.5375,152.93,152.9,2.63234036]
[1751840024052,6.5375,152.93,152.9,9.17094036]
[1751840025253,6.5371,152.94,152.9,9.17094036]
[1751840026953,6.5371,152.94,152.9,6.5386]
[1751840027152,6.5371,152.94,152.9,9.17094036]
[1751840028353,6.5373,152.93,152.9,9.17094036]
[1751840029253,6.5371,152.94,152.9,9.17094036]
[1751840030353,6.5374,152.93,152.9,9.17094036]
[1751840034054,6.5378,152.92,152.9,2.63234036]
[1751840034962,50.73234036,152.96,152.86,2.3406]
[1751840035153,2.63234036,152.92,152.85,2.63234036]
[1751840035458,50.0728,152.91,152.87,2.63234036]
[1751840035661,50.0728,152.91,152.87,9.17214036]
[1751840037559,47.9,152.91,152.88,6.5394]
[1751840038163,54.4384,152.91,152.88,6.5394]
[1751840038650,54.4384,152.91,152.89,6.539]
[1751840039361,6.5386,152.9,152.88,6.5393]
[1751840039564,6.5386,152.9,152.87,2.63234036]
[1751840041463,54.4384,152.91,152.88,6.5394]
[1751840043464,13.53754614,152.98,152.89,2.63234036]
[1751840043758,50.0862,152.98,152.89,2.1501]
[1751840043963,52.71854036,152.98,152.91,2.63234036]
[1751840044659,6.5372,152.94,152.91,2.63234036]
[1751840045059,52.71854036,152.98,152.91,2.63234036]
[1751840045865,6.537,152.94,152.91,2.63234036]
[1751840047165,6.537,152.94,152.9,6.5384]
[1751840047366,6.537,152.94,152.9,9.17074036]
[1751840047566,6.5367,152.95,152.9,9.17074036]
[1751840047963,6.5367,152.95,152.91,6.538]
[1751840048164,6.5362,152.96,152.92,2.63234036]
[1751840048360,50.0862,152.98,152.92,2.63234036]
[1751840048865,50.0862,152.98,152.92,9.16984036]
[1751840049161,197.06,152.97,152.88,11.99198398]
[1751840049363,197.06,152.97,152.9,2.63234036]
[1751840049765,6.5369,152.94,152.9,9.17084036]
[1751840053070,6.5369,152.94,152.91,6.5381]
[1751840056072,6.5366,152.95,152.91,6.5381]
[1751840056276,6.5366,152.95,152.92,9.17004036]
[1751840057368,6.5366,152.95,152.92,2.63234036]
[1751840058680,6.5366,152.95,152.92,9.17014036]
[1751840058972,196.96,152.96,152.89,11.99198398]
[1751840059177,196.96,152.96,152.92,2.63234036]
[1751840059368,196.96,152.96,152.92,9.17004036]
[1751840059881,47.9,152.98,152.95,2.63189708]
[1751840060772,54.4356,152.98,152.95,9.16829708]
[1751840061174,54.4356,152.98,152.95,9.16765659]
[1751840061775,6.5356,152.98,152.95,9.16765659]
[1751840062079,571.1149,152.99,152.96,6.536]
[1751840062277,6.5349,152.99,152.97,2.63125659]
[1751840062778,251.0945,153.0,152.97,9.16675659]
[1751840062968,244.56,153.0,152.97,2.63125659]
[1751840063170,47.74,153.0,152.97,2.63125659]
[1751840063480,244.56,153.0,152.97,2.63125659]
[1751840064581,244.54,153.0,152.97,2.63125659]
[1751840065876,196.76,153.02,152.99,2.63125659]
[1751840066380,6.5339,153.01,152.99,2.63125659]
[1751840066680,196.76,153.02,152.99,2.63125659]
[1751840068276,6.5337,153.02,152.99,9.16575659]
[1751840068673,203.2137,153.02,152.99,9.16575659]
[1751840071177,6.5339,153.01,152.99,9.16575659]
[1751840071677,196.68,153.02,152.99,9.16575659]
[1751840072580,203.2137,153.02,152.99,9.16575659]
[1751840074777,6.5339,153.01,152.99,2.63125659]
[1751840075284,203.2137,153.02,152.99,9.16595659]
[1751840076084,6.5337,153.02,152.99,9.16595659]
[1751840076280,203.0737,153.02,152.99,9.16595659]
[1751840076480,196.54,153.02,152.99,2.63125659]
[1751840076681,196.54,153.02,152.97,2.63125659]
[1751840077284,6.5349,152.99,152.97,2.63125659]
[1751840078086,6.5345,153.0,152.97,2.63125659]
[1751840079084,6.5341,153.01,152.97,9.16685659]
[1751840080287,6.5341,153.01,152.98,6.5349]
[1751840080483,203.0737,153.02,152.97,2.63125659]
[1751840080684,196.46,153.01,152.99,2.63125659]
[1751840081078,196.46,153.01,153.0,6.5343]
[1751840081282,196.44,153.02,152.99,2.63125659]
[1751840081476,47.74,153.04,152.99,2.63125659]
[1751840081680,196.44,153.03,153.01,6.5339]
[1751840082575,54.2728,153.04,153.01,9.16515659]
[1751840082783,250.7128,153.04,153.01,9.16515659]
[1751840083381,54.2728,153.04,153.01,9.16515659]
[1751840083582,47.74,153.04,153.01,2.63125659]
[1751840083782,2.2441,153.06,153.03,2.63125659]
[1751840083986,198.6441,153.06,153.03,2.63125659]
[1751840084578,2.2441,153.06,153.03,2.63125659]
[1751840084884,47.56,153.08,153.05,2.63125659]
[1751840085086,6.5314,153.07,153.05,2.63125659]
[1751840085583,196.38,153.07,153.05,2.63125659]
[1751840086590,202.9117,153.07,153.05,2.63125659]
[1751840090892,6.5317,153.07,153.05,2.63125659]
[1751840091191,196.28,153.06,153.05,2.63125659]
[1751840091388,202.8118,153.06,153.05,2.63125659]
[1751840092095,2.63125659,153.14,153.05,2.63125659]
[1751840092289,198.5606,153.12,153.05,2.63125659]
[1751840092491,2.29881262,153.11,153.07,2.63125659]
[1751840092691,8.82881262,153.11,153.07,9.16225659]
[1751840093091,2.29881262,153.11,153.07,9.16225659]
[1751840093396,196.2,153.11,153.07,9.16225659]
[1751840094595,6.5304,153.1,153.07,2.63125659]
[1751840096897,6.5304,153.1,152.98,2.207]
[1751840097098,6.5306,153.09,153.07,2.63125659]
[1751840097296,196.2,153.11,153.07,2.63125659]
[1751840098199,6.5303,153.1,153.07,9.16265659]
[1751840100399,49.8806,153.12,153.09,2.63125659]
[1751840100604,47.54,153.12,153.11,2.63125659]
[1751840100904,6.5304,153.1,153.07,2.63125659]
[1751840101602,47.54,153.12,153.07,2.63125659]
[1751840101796,47.54,153.12,153.09,2.63125659]
[1751840101999,47.54,153.16,153.13,6.5287]
[1751840102303,2.26644528,153.15,153.13,2.63125659]
[1751840102503,243.54,153.16,153.13,2.63125659]
[1751840103597,243.52,153.16,153.13,2.63125659]
[1751840103996,6.528,153.15,153.13,2.63125659]
[1751840105901,6.528,153.15,153.11,6.5295]
[1751840105902,243.52,153.16,153.07,47.54]
[1751840106109,243.52,153.16,153.09,2.63125659]
[1751840106409,4.50547234,153.15,153.09,2.63125659]
[1751840106602,2.63125659,153.14,153.07,2.63125659]
[1751840106798,195.88,153.13,153.07,2.63125659]
[1751840107003,198.1304,153.13,153.07,2.63125659]
[1751840107309,6.53,153.11,153.07,2.63125659]
[1751840107804,198.1304,153.13,153.08,6.5306]
[1751840108207,198.1304,153.13,153.07,9.16255659]
[1751840108410,198.1304,153.13,153.07,2.63125659]
[1751840109102,6.5303,153.1,153.07,2.63125659]
[1751840109502,198.1304,153.13,153.07,2.63125659]
[1751840110504,6.5308,153.09,153.07,2.63125659]
[1751840110704,47.34,153.11,153.07,2.63125659]
[1751840111105,6.5308,153.09,153.07,2.63125659]
[1751840111501,6.5308,153.09,153.03,47.52]
[1751840111698,47.34,153.11,153.06,2.63125659]
[1751840111898,47.34,153.11,153.08,2.63125659]
[1751840112102,47.34,153.11,153.06,2.63125659]
[1751840112510,6.5305,153.09,153.06,2.63125659]
[1751840114205,47.34,153.11,153.08,2.63125659]
[1751840114910,2.2258,153.15,153.1,2.63125659]
[1751840114911,49.5658,153.15,153.1,2.63125659]
[1751840115207,56.0939,153.15,153.13,2.63125659]
[1751840115509,47.34,153.15,153.13,2.63125659]
[1751840115710,2.149,153.19,153.13,2.63125659]
[1751840116010,2.149,153.19,153.15,2.63125659]
[1751840116210,197.889,153.19,153.15,2.63125659]
[1751840116611,6.5275,153.16,153.15,2.63125659]
[1751840116913,197.889,153.19,153.15,2.63125659]
[1751840117514,6.5275,153.16,153.15,2.63125659]
[1751840118107,6.5272,153.17,153.15,2.63125659]
[1751840121317,6.5275,153.16,153.15,2.63125659]
[1751840121816,197.889,153.19,153.15,2.63125659]
[1751840122012,6.5273,153.17,153.15,2.63125659]
[1751840123014,202.1068,153.18,153.15,2.63125659]
[1751840123210,2.149,153.19,153.15,2.63125659]
[1751840123518,6.5269,153.18,153.15,2.63125659]
[1751840123918,201.66412434,153.19,153.14,2.63125659]
[1751840123919,197.729,153.19,153.14,2.63125659]
[1751840124219,6.528,153.15,153.12,2.63125659]
[1751840124419,3.937044,153.17,153.12,2.63125659]
[1751840124621,197.729,153.19,153.12,2.63125659]
[1751840124924,6.5278,153.16,153.12,9.16035659]
[1751840125114,197.729,153.19,153.14,2.63125659]
[1751840125419,195.58,153.19,153.15,2.63125659]
[1751840126115,6.527,153.18,153.15,2.63125659]
[1751840126319,195.58,153.19,153.15,2.63125659]
[1751840126720,6.5273,153.17,153.15,2.63125659]
[1751840128523,195.58,153.19,153.13,2.63125659]
[1751840128723,3.9523031,153.18,153.13,2.63125659]
[1751840128913,3.9523031,153.17,153.13,9.16005659]
[1751840129117,2.63125659,153.15,153.08,2.63125659]
[1751840129314,246.73253001,153.14,153.08,2.63125659]
[1751840129522,242.78,153.14,153.08,2.63125659]
[1751840129714,242.78,153.14,153.04,7.35055659]
[1751840129925,242.78,153.14,153.1,2.63125659]
[1751840130124,47.32,153.14,153.12,2.63125659]
[1751840130428,195.44,153.17,153.12,2.63125659]
[1751840130825,195.44,153.17,153.13,6.5286]
[1751840131023,4.00042229,153.16,153.13,6.5286]
[1751840131221,195.42,153.17,153.13,6.5286]
[1751840131428,4.00084001,153.16,153.13,6.5286]
[1751840131625,195.42,153.17,153.13,6.5286]
[1751840131828,4.00084001,153.16,153.13,6.5286]
[1751840132026,195.42,153.17,153.13,6.5286]
[1751840132229,4.00073386,153.16,153.13,6.5286]
[1751840132432,195.42,153.17,153.14,6.5283]
[1751840132628,4.00122722,153.16,153.14,6.5283]
[1751840132829,195.42,153.17,153.14,6.5283]
[1751840133030,4.00122937,153.16,153.14,6.5283]
[1751840133229,195.42,153.17,153.14,6.5283]
[1751840133529,4.00183157,153.16,153.14,6.5283]
[1751840133729,195.42,153.17,153.14,6.5283]
[1751840133931,195.42,153.17,153.15,6.5279]
[1751840134132,4.00183157,153.16,153.15,6.5279]
[1751840135033,195.36,153.17,153.14,2.63125659]
[1751840135430,4.5677,153.2,153.16,2.63125659]
[1751840135629,4.00198374,153.19,153.16,2.63125659]
[1751840135932,195.34,153.2,153.16,2.63125659]
[1751840136334,195.34,153.23,153.19,6.5263]
[1751840136533,11.75888001,153.22,153.19,6.5263]
[1751840136837,4.00025995,153.21,153.19,6.5263]
[1751840137032,199.32025995,153.2,153.19,6.5263]
[1751840137634,199.32025995,153.2,153.18,6.5266]
[1751840137833,195.32,153.2,153.18,6.5266]
[1751840138836,195.32,153.2,153.16,2.63125659]
[1751840139437,6.5252,153.22,153.18,6.5264]
[1751840139637,199.2692133,153.21,153.18,6.5264]
[1751840139839,195.28,153.21,153.16,2.63125659]
[1751840140238,195.28,153.21,153.13,2.2862]
[1751840140239,195.26,153.21,153.18,2.63125659]
[1751840140434,6.5246,153.23,153.18,2.63125659]
[1751840140636,199.28035518,153.22,153.21,6.5254]
[1751840140830,4.02035518,153.22,153.21,6.5254]
[1751840141036,199.28035518,153.22,153.21,6.5254]
[1751840141537,199.28035518,153.22,153.2,6.5257]
[1751840141728,195.26,153.22,153.2,6.5257]
[1751840141932,2.1766,153.24,153.21,6.5253]
[1751840142231,2.1766,153.24,153.2,2.63125659]
[1751840142232,4.01889059,153.23,153.2,2.63125659]
[1751840142428,6.5246,153.23,153.2,9.15685659]
[1751840142838,244.7234,153.25,153.2,2.63125659]
[1751840143036,4.02068433,153.24,153.21,6.5251]
[1751840143240,4.02068433,153.23,153.2,2.63125659]
[1751840143538,251.2474,153.25,153.22,6.5246]
[1751840143730,4.02228332,153.24,153.2,2.63125659]
[1751840143935,47.32,153.25,153.2,2.63125659]
[1751840144133,4.01248562,153.24,153.22,6.5246]
[1751840144332,47.32,153.25,153.22,6.5246]
[1751840144536,47.32,153.25,153.24,2.63125659]
[1751840144929,47.32,153.25,153.22,2.63125659]
[1751840145134,6.5226,153.28,153.24,2.63125659]
[1751840145334,4.03938461,153.27,153.24,2.63125659]
[1751840145530,4.03938461,153.26,153.24,9.15525659]
[1751840145737,195.18,153.28,153.24,9.15525659]
[1751840145942,4.03898577,153.27,153.24,9.15525659]
[1751840146141,4.03898577,153.26,153.24,2.63125659]
[1751840146343,195.14,153.28,153.22,2.63125659]
[1751840146642,4.03824079,153.27,153.22,2.63125659]
[1751840146842,4.03824079,153.26,153.22,2.63125659]
[1751840147141,195.12,153.27,153.22,2.63125659]
[1751840147344,4.03542451,153.26,153.22,2.63125659]
[1751840147545,56.52365659,153.29,153.22,2.63125659]
[1751840147736,199.15522128,153.28,153.22,2.63125659]
[1751840147936,4.03522128,153.27,153.22,2.63125659]
[1751840148135,195.12,153.28,153.22,2.63125659]
[1751840148342,6.5234,153.26,153.23,6.5243]
[1751840148640,195.1,153.27,153.22,2.63125659]
[1751840149043,4.03282784,153.26,153.22,2.63125659]
[1751840149245,195.1,153.27,153.22,2.63125659]
[1751840149542,6.5236,153.26,153.22,2.63125659]
[1751840150138,6.5236,153.26,153.22,9.15595659]
[1751840150443,201.623,153.27,153.22,2.63125659]
[1751840150641,201.623,153.27,153.24,2.63125659]
[1751840151041,201.623,153.27,153.24,9.15515659]
[1751840151541,6.5234,153.26,153.23,9.15565659]
[1751840152035,6.7524,153.29,153.25,9.15455659]
[1751840152242,6.7524,153.29,153.24,2.63125659]
[1751840152443,6.523,153.27,153.24,9.15525659]
[1751840153642,6.523,153.27,153.24,2.63125659]
[1751840155347,6.523,153.27,153.24,9.15525659]
[1751840155749,6.5233,153.26,153.24,2.63125659]
[1751840155947,242.1,153.28,153.24,2.63125659]
[1751840156137,242.1,153.28,153.24,9.15515659]
[1751840156338,6.5229,153.27,153.24,9.15515659]
[1751840156547,242.1,153.28,153.24,2.63125659]
[1751840156745,242.1,153.28,153.25,6.5234]